fUST/lending_fUST_20250601
["ID","MTS","AMOUNT","RATE_DAILY","PERIOD"]
[363444777,1748724641129,-430.0,0.00017534,2]
[363444779,1748724641139,-430.0,0.00017534,2]
[363444781,1748724641149,-430.0,0.00017534,2]
[363444783,1748724641159,-430.0,0.00017534,2]
[363444785,1748724641169,-430.0,0.00017534,2]
[363444787,1748724641179,-430.0,0.00017534,2]
[363444789,1748724641191,-268.55679547,0.00017534,2]
[363444791,1748724641204,-1553.21,0.00017534,2]
[363444793,1748724641215,-430.0,0.00017534,2]
[363444795,1748724641225,-430.0,0.00017534,2]
[363444797,1748724641235,-540.7,0.00017534,2]
[363444799,1748724641245,-430.0,0.00017534,2]
[363444801,1748724641256,-499.78,0.00017534,2]
[363444803,1748724641266,-1518.25,0.00017534,2]
[363444806,1748724641276,-430.0,0.00017534,2]
[363444808,1748724641286,-430.0,0.00017534,2]
[363444810,1748724641296,-430.0,0.00017534,2]
[363444812,1748724641305,-430.0,0.00017534,2]
[363444814,1748724641315,-430.0,0.00017534,2]
[363444816,1748724641325,-799.21,0.00017534,2]
[363444817,1748724641335,-430.0,0.00017534,2]
[363444820,1748724641345,-1387.14,0.00017534,2]
[363444822,1748724641354,-511.93,0.00017534,2]
[363444824,1748724641364,-472.1,0.00017534,2]
[363444825,1748724641373,-430.0,0.00017534,2]
[363444827,1748724641383,-430.0,0.00017534,2]
[363444829,1748724641393,-487.82,0.00017534,2]
[363444832,1748724641403,-270.32,0.00017534,2]
[363444833,1748724641412,-430.0,0.00017534,2]
[363444836,1748724641423,-783.86,0.00017534,2]
[363444838,1748724641432,-867.63,0.00017534,2]
[363444839,1748724641441,-896.72,0.00017534,2]
[363444842,1748724641455,-430.0,0.00017534,2]
[363444844,1748724641464,-763.33,0.00017534,2]
[363444846,1748724641473,-430.0,0.00017534,2]
[363444848,1748724641483,-1313.16,0.00017534,2]
[363444850,1748724641492,-658.46,0.00017534,2]
[363444852,1748724641502,-502.44,0.00017534,2]
[363444854,1748724641512,-448.76,0.00017534,2]
[363444856,1748724641522,-430.0,0.00017534,2]
[363444858,1748724641532,-565.53,0.00017534,2]
[363444860,1748724641542,-683.63,0.00017534,2]
[363444862,1748724641551,-430.0,0.00017534,2]
[363444864,1748724641562,-430.0,0.00017534,2]
[363444866,1748724641572,-1031.3,0.00017534,2]
[363444869,1748724641581,-1060.4,0.00017534,2]
[363444871,1748724641591,-500.0,0.00017589,2]
[363444873,1748724641601,-500.0,0.00017664,2]
[363444875,1748724641610,-306.36394459,0.00017808,2]
[363444876,1748724641624,-430.0,0.00017808,2]
[363444878,1748724641634,-430.0,0.00017808,2]
[363444881,1748724641646,-430.0,0.00017808,2]
[363444883,1748724641656,-301.47,0.00017808,2]
[363444885,1748724641666,-430.0,0.00017808,2]
[363444887,1748724641675,-430.0,0.00017808,2]
[363444889,1748724641685,-470.0,0.00017808,2]
[363444891,1748724641695,-1553.21,0.00017808,2]
[363444893,1748724641704,-430.0,0.00017808,2]
[363444895,1748724641714,-430.0,0.00017808,2]
[363444897,1748724641723,-540.7,0.00017808,2]
[363444899,1748724641733,-499.78,0.00017808,2]
[363444901,1748724641743,-430.0,0.00017808,2]
[363444903,1748724641753,-1518.25,0.00017808,2]
[363444905,1748724641763,-430.0,0.00017808,2]
[363444907,1748724641773,-430.0,0.00017808,2]
[363444909,1748724641782,-430.0,0.00017808,2]
[363444911,1748724641792,-799.21,0.00017808,2]
[363444913,1748724641802,-430.0,0.00017808,2]
[363444915,1748724641812,-1387.14,0.00017808,2]
[363444917,1748724641822,-511.93,0.00017808,2]
[363444919,1748724641831,-472.1,0.00017808,2]
[363444921,1748724641841,-430.0,0.00017808,2]
[363444923,1748724641851,-430.0,0.00017808,2]
[363444926,1748724641861,-487.82,0.00017808,2]
[363444928,1748724641870,-430.0,0.00017808,2]
[363444930,1748724641879,-783.86,0.00017808,2]
[363444932,1748724641889,-867.63,0.00017808,2]
[363444934,1748724641899,-896.72,0.00017808,2]
[363444935,1748724641908,-430.0,0.00017808,2]
[363444938,1748724641920,-763.33,0.00017808,2]
[363444940,1748724641930,-430.0,0.00017808,2]
[363444942,1748724641940,-1313.16,0.00017808,2]
[363444944,1748724641949,-658.46,0.00017808,2]
[363444946,1748724641958,-502.44,0.00017808,2]
[363444948,1748724641968,-448.76,0.00017808,2]
[363444950,1748724641977,-430.0,0.00017808,2]
[363444952,1748724641988,-683.63,0.00017808,2]
[363444954,1748724642004,-430.0,0.00017808,2]
[363444956,1748724642018,-430.0,0.00017808,2]
[363444958,1748724642028,-1031.3,0.00017808,2]
[363444960,1748724642038,-1060.4,0.00017808,2]
[363444962,1748724642048,-505.30963114,0.00017822,2]
[363444964,1748724642058,-598.37328647,0.000179,2]
[363444967,1748724642068,-420.0,0.00017963,2]
[363444969,1748724642078,-163.216496,0.00018,2]
[363444971,1748724642088,-163.216496,0.00018,2]
[363444973,1748724642098,-151.0,0.00018,2]
[363444975,1748724642108,-160.0,0.00018025,2]
[363444977,1748724642117,-160.0,0.00018025,2]
[363444979,1748724642127,-160.0,0.00018025,2]
[363444981,1748724642136,-160.0,0.00018025,2]
[363444983,1748724642146,-160.0,0.00018025,2]
[363444985,1748724642156,-160.0,0.00018025,2]
[363444987,1748724642166,-842.5625,0.00018025,2]
[363444989,1748724642176,-229.3428821,0.00018025,2]
[363444991,1748724642187,-212.77096907,0.00018025,2]
[363444993,1748724642196,-423.4608169,0.00018025,2]
[363444995,1748724642207,-430.0,0.00018082,2]
[363444998,1748724642217,-430.0,0.00018082,2]
[363445000,1748724642227,-430.0,0.00018082,2]
[363445002,1748724642237,-495.05,0.00018082,2]
[363445004,1748724642247,-206.20141754,0.00018082,2]
[363445006,1748724642257,-1553.21,0.00018082,2]
[363445008,1748724642267,-430.0,0.00018082,2]
[363445010,1748724642277,-430.0,0.00018082,2]
[363445012,1748724642287,-540.7,0.00018082,2]
[363445014,1748724642298,-499.78,0.00018082,2]
[363445016,1748724642308,-430.0,0.00018082,2]
[363445018,1748724642318,-1518.25,0.00018082,2]
[363445020,1748724642328,-430.0,0.00018082,2]
[363445022,1748724642338,-430.0,0.00018082,2]
[363445025,1748724642349,-430.0,0.00018082,2]
[363445027,1748724642359,-799.21,0.00018082,2]
[363445029,1748724642370,-430.0,0.00018082,2]
[363445032,1748724642379,-1387.14,0.00018082,2]
[363445034,1748724642390,-511.93,0.00018082,2]
[363445036,1748724642399,-472.1,0.00018082,2]
[363445038,1748724642409,-430.0,0.00018082,2]
[363445065,1748724642570,-430.0,0.00018082,2]
[363445067,1748724642580,-487.82,0.00018082,2]
[363445069,1748724642589,-430.0,0.00018082,2]
[363445071,1748724642599,-783.86,0.00018082,2]
[363445073,1748724642609,-867.63,0.00018082,2]
[363445075,1748724642618,-896.72,0.00018082,2]
[363445077,1748724642627,-430.0,0.00018082,2]
[363445079,1748724642638,-763.33,0.00018082,2]
[363445081,1748724642649,-430.0,0.00018082,2]
[363445084,1748724642660,-1313.16,0.00018082,2]
[363445085,1748724642669,-658.46,0.00018082,2]
[363445088,1748724642678,-502.44,0.00018082,2]
[363445090,1748724642689,-448.76,0.00018082,2]
[363445092,1748724642699,-430.0,0.00018082,2]
[363445093,1748724642708,-683.63,0.00018082,2]
[363445096,1748724642720,-430.0,0.00018082,2]
[363445098,1748724642729,-430.0,0.00018082,2]
[363445100,1748724642738,-1031.3,0.00018082,2]
[363445101,1748724642748,-1060.4,0.00018082,2]
[363445103,1748724642757,-3851.53,0.00018113,2]
[363445105,1748724642767,-1013.19229648,0.00018137,2]
[363445107,1748724642776,-598.37328624,0.00018141,2]
[363445110,1748724642786,-430.0,0.00018356,2]
[363445112,1748724642795,-430.0,0.00018356,2]
[363445114,1748724642805,-1553.21,0.00018356,2]
[363445116,1748724642817,-430.0,0.00018356,2]
[363445118,1748724642827,-430.0,0.00018356,2]
[363445120,1748724642837,-540.7,0.00018356,2]
[363445122,1748724642846,-499.78,0.00018356,2]
[363445124,1748724642856,-430.0,0.00018356,2]
[363445126,1748724642865,-1518.25,0.00018356,2]
[363445128,1748724642875,-430.0,0.00018356,2]
[363445130,1748724642885,-430.0,0.00018356,2]
[363445132,1748724642895,-430.0,0.00018356,2]
[363445134,1748724642905,-799.21,0.00018356,2]
[363445136,1748724642915,-430.0,0.00018356,2]
[363445138,1748724642925,-1387.14,0.00018356,2]
[363445140,1748724642935,-511.93,0.00018356,2]
[363445142,1748724642945,-472.1,0.00018356,2]
[363445144,1748724642956,-430.0,0.00018356,2]
[363445146,1748724642966,-430.0,0.00018356,2]
[363445148,1748724642976,-487.82,0.00018356,2]
[363445150,1748724642986,-430.0,0.00018356,2]
[363445152,1748724642996,-783.86,0.00018356,2]
[363445154,1748724643014,-867.63,0.00018356,2]
[363445156,1748724643024,-896.72,0.00018356,2]
[363445158,1748724643034,-430.0,0.00018356,2]
[363445160,1748724643044,-763.33,0.00018356,2]
[363445162,1748724643053,-430.0,0.00018356,2]
[363445164,1748724643064,-1313.16,0.00018356,2]
[363445166,1748724643074,-658.46,0.00018356,2]
[363445168,1748724643083,-502.44,0.00018356,2]
[363445170,1748724643094,-448.76,0.00018356,2]
[363445172,1748724643104,-430.0,0.00018356,2]
[363445174,1748724643114,-683.63,0.00018356,2]
[363445176,1748724643123,-332.12,0.00018356,2]
[363445178,1748724643133,-430.0,0.00018356,2]
[363445180,1748724643144,-1031.3,0.00018356,2]
[363445182,1748724643154,-598.37328624,0.00018383,2]
[363445184,1748724643163,-598.37328624,0.00018624,2]
[363445187,1748724643173,-163.216496,0.0001863,2]
[363445189,1748724643186,-163.216496,0.0001863,2]
[363445190,1748724643195,-151.0,0.0001863,2]
[363445192,1748724643206,-275.45060574,0.0001863,2]
[363445195,1748724643216,-430.0,0.0001863,2]
[363445197,1748724643225,-1553.21,0.0001863,2]
[363445199,1748724643235,-430.0,0.0001863,2]
[363445201,1748724643245,-430.0,0.0001863,2]
[363445203,1748724643255,-540.7,0.0001863,2]
[363445205,1748724643266,-430.0,0.0001863,2]
[363445207,1748724643275,-499.78,0.0001863,2]
[363445209,1748724643285,-1518.25,0.0001863,2]
[363445211,1748724643295,-430.0,0.0001863,2]
[363445213,1748724643305,-430.0,0.0001863,2]
[363445215,1748724643315,-430.0,0.0001863,2]
[363445217,1748724643325,-799.21,0.0001863,2]
[363445219,1748724643334,-430.0,0.0001863,2]
[363445221,1748724643344,-1387.14,0.0001863,2]
[363445223,1748724643354,-511.93,0.0001863,2]
[363445225,1748724643364,-472.1,0.0001863,2]
[363445227,1748724643374,-430.0,0.0001863,2]
[363445229,1748724643383,-430.0,0.0001863,2]
[363445231,1748724643393,-487.82,0.0001863,2]
[363445233,1748724643403,-430.0,0.0001863,2]
[363445235,1748724643412,-783.86,0.0001863,2]
[363445237,1748724643422,-867.63,0.0001863,2]
[363445239,1748724643432,-896.72,0.0001863,2]
[363445241,1748724643441,-430.0,0.0001863,2]
[363445243,1748724643451,-763.33,0.0001863,2]
[363445245,1748724643461,-430.0,0.0001863,2]
[363445247,1748724643471,-1313.16,0.0001863,2]
[363445249,1748724643480,-658.46,0.0001863,2]
[363445251,1748724643490,-502.44,0.0001863,2]
[363445253,1748724643500,-448.76,0.0001863,2]
[363445255,1748724643510,-430.0,0.0001863,2]
[363445257,1748724643519,-683.63,0.0001863,2]
[363445260,1748724643529,-430.0,0.0001863,2]
[363445262,1748724643539,-1031.3,0.0001863,2]
[363445264,1748724643549,-598.37328624,0.00018866,2]
[363445266,1748724643558,-300.0,0.00018867,2]
[363445268,1748724643569,-207.4,0.00018867,2]
[363445269,1748724643578,-300.0,0.00018867,2]
[363445272,1748724643588,-300.0,0.00018867,2]
[363445274,1748724643597,-300.0,0.00018867,2]
[363445276,1748724643607,-5000.0,0.00018867,2]
[363445278,1748724643617,-300.0,0.00018867,2]
[363445280,1748724643626,-300.0,0.00018867,2]
[363445281,1748724643636,-300.0,0.00018867,2]
[363445283,1748724643647,-300.0,0.00018867,2]
[363445285,1748724643656,-300.0,0.00018867,2]
[363445287,1748724643666,-300.0,0.00018867,2]
[363445289,1748724643675,-300.0,0.00018867,2]
[363445291,1748724643685,-300.0,0.00018867,2]
[363445294,1748724643695,-300.0,0.00018867,2]
[363445296,1748724643705,-300.0,0.00018867,2]
[363445298,1748724643715,-300.0,0.00018867,2]
[363445300,1748724643724,-430.0,0.00018904,2]
[363445302,1748724643735,-1553.21,0.00018904,2]
[363445304,1748724643745,-430.0,0.00018904,2]
[363445306,1748724643756,-430.0,0.00018904,2]
[363445308,1748724643766,-540.7,0.00018904,2]
[363445310,1748724643776,-430.0,0.00018904,2]
[363445312,1748724643786,-499.78,0.00018904,2]
[363445314,1748724643795,-1518.25,0.00018904,2]
[363445316,1748724643806,-430.0,0.00018904,2]
[363445318,1748724643815,-430.0,0.00018904,2]
[363445320,1748724643825,-430.0,0.00018904,2]
[363445322,1748724643835,-799.21,0.00018904,2]
[363445324,1748724643844,-430.0,0.00018904,2]
[363445326,1748724643854,-1387.14,0.00018904,2]
[363445328,1748724643864,-511.93,0.00018904,2]
[363445330,1748724643874,-472.1,0.00018904,2]
[363445332,1748724643883,-430.0,0.00018904,2]
[363445334,1748724643893,-430.0,0.00018904,2]
[363445336,1748724643904,-487.82,0.00018904,2]
[363445338,1748724643913,-430.0,0.00018904,2]
[363445340,1748724643922,-783.86,0.00018904,2]
[363445342,1748724643932,-867.63,0.00018904,2]
[363445344,1748724643942,-896.72,0.00018904,2]
[363445346,1748724643952,-430.0,0.00018904,2]
[363445348,1748724643961,-763.33,0.00018904,2]
[363445350,1748724643971,-430.0,0.00018904,2]
[363445353,1748724643981,-1313.16,0.00018904,2]
[363445354,1748724643991,-658.46,0.00018904,2]
[363445356,1748724644001,-502.44,0.00018904,2]
[363445359,1748724644011,-448.76,0.00018904,2]
[363445360,1748724644020,-430.0,0.00018904,2]
[363445363,1748724644030,-683.63,0.00018904,2]
[363445365,1748724644039,-430.0,0.00018904,2]
[363445366,1748724644048,-1031.3,0.00018904,2]
[363445369,1748724644058,-7703.05,0.00018976,2]
[363445371,1748724644068,-598.37328624,0.00019107,2]
[363445373,1748724644078,-250.0,0.00019178,2]
[363445375,1748724644087,-430.0,0.00019178,2]
[363445377,1748724644097,-1553.21,0.00019178,2]
[363445379,1748724644106,-430.0,0.00019178,2]
[363445381,1748724644116,-430.0,0.00019178,2]
[363445383,1748724644126,-540.7,0.00019178,2]
[363445385,1748724644136,-430.0,0.00019178,2]
[363445387,1748724644146,-499.78,0.00019178,2]
[363445389,1748724644155,-1518.25,0.00019178,2]
[363445391,1748724644165,-430.0,0.00019178,2]
[363445393,1748724644175,-430.0,0.00019178,2]
[363445395,1748724644184,-430.0,0.00019178,2]
[363445397,1748724644193,-799.21,0.00019178,2]
[363445399,1748724644203,-240.07,0.00019178,2]
[363445401,1748724644213,-1387.14,0.00019178,2]
[363445403,1748724644223,-511.93,0.00019178,2]
[363445405,1748724644233,-472.1,0.00019178,2]
[363445407,1748724644243,-430.0,0.00019178,2]
[363445409,1748724644253,-500.0,0.00019178,2]
[363445411,1748724644264,-430.0,0.00019178,2]
[363445413,1748724644274,-500.0,0.00019178,2]
[363445415,1748724644284,-500.0,0.00019178,2]
[363445417,1748724644294,-500.0,0.00019178,2]
[363445419,1748724644304,-500.0,0.00019178,2]
[363445421,1748724644314,-500.0,0.00019178,2]
[363445423,1748724644324,-500.0,0.00019178,2]
[363445425,1748724644335,-617.35229874,0.00019178,2]
[363445427,1748724644346,-487.82,0.00019178,2]
[363445429,1748724644356,-430.0,0.00019178,2]
[363445431,1748724644366,-783.86,0.00019178,2]
[363445433,1748724644375,-867.63,0.00019178,2]
[363445435,1748724644385,-896.72,0.00019178,2]
[363445437,1748724644395,-430.0,0.00019178,2]
[363445439,1748724644405,-763.33,0.00019178,2]
[363445440,1748724644414,-430.0,0.00019178,2]
[363445441,1748724644423,-1313.16,0.00019178,2]
[363445442,1748724644433,-658.46,0.00019178,2]
[363445443,1748724644442,-502.44,0.00019178,2]
[363445444,1748724644452,-448.76,0.00019178,2]
[363445445,1748724644461,-430.0,0.00019178,2]
[363445446,1748724644470,-683.63,0.00019178,2]
[363445447,1748724644479,-430.0,0.00019178,2]
[363445448,1748724644489,-430.0,0.00019178,2]
[363445449,1748724644498,-430.0,0.00019178,2]
[363445450,1748724644508,-430.0,0.00019178,2]
[363445451,1748724644517,-430.0,0.00019178,2]
[363445452,1748724644527,-430.0,0.00019178,2]
[363445453,1748724644536,-430.0,0.00019178,2]
[363445454,1748724644546,-430.0,0.00019178,2]
[363445455,1748724644555,-430.0,0.00019178,2]
[363445456,1748724644565,-430.0,0.00019178,2]
[363445457,1748724644575,-430.0,0.00019178,2]
[363445458,1748724644584,-168.282417,0.00019178,2]
[363445459,1748724644593,-163.216496,0.00019329,2]
[363445460,1748724644603,-163.216496,0.00019329,2]
[363445461,1748724644612,-151.0,0.00019329,2]
[363445463,1748724644621,-30191.14888411,0.00019329,2]
[363445465,1748724644631,-598.37328624,0.00019348,2]
[363445467,1748724644644,-192.09,0.00019452,2]
[363445469,1748724644653,-1553.21,0.00019452,2]
[363445471,1748724644663,-430.0,0.00019452,2]
[363445473,1748724644672,-430.0,0.00019452,2]
[363445475,1748724644683,-540.7,0.00019452,2]
[363445476,1748724644692,-370.77618381,0.00019452,2]
[363445478,1748724644701,-499.78,0.00019452,2]
[363445480,1748724644710,-1518.25,0.00019452,2]
[363445482,1748724644722,-430.0,0.00019452,2]
[363445484,1748724644732,-430.0,0.00019452,2]
[363445486,1748724644742,-430.0,0.00019452,2]
[363445488,1748724644751,-799.21,0.00019452,2]
[363445490,1748724644761,-1387.14,0.00019452,2]
[363445492,1748724644771,-511.93,0.00019452,2]
[363445494,1748724644781,-472.1,0.00019452,2]
[363445496,1748724644790,-430.0,0.00019452,2]
[363445498,1748724644799,-430.0,0.00019452,2]
[363445500,1748724644809,-487.82,0.00019452,2]
[363445502,1748724644819,-430.0,0.00019452,2]
[363445504,1748724644829,-783.86,0.00019452,2]
[363445506,1748724644839,-867.63,0.00019452,2]
[363445509,1748724644848,-896.72,0.00019452,2]
[363445511,1748724644858,-351.73,0.00019452,2]
[363445513,1748724644868,-763.33,0.00019452,2]
[363445515,1748724644879,-430.0,0.00019452,2]
[363445517,1748724644888,-1313.16,0.00019452,2]
[363445519,1748724644898,-658.46,0.00019452,2]
[363445521,1748724644908,-502.44,0.00019452,2]
[363445523,1748724644917,-448.76,0.00019452,2]
[363445525,1748724644927,-430.0,0.00019452,2]
[363445527,1748724644937,-683.63,0.00019452,2]
[363445529,1748724644947,-430.0,0.00019452,2]
[363445531,1748724644958,-598.37328624,0.0001959,2]
[363445533,1748724644968,-300.0,0.00019631,2]
[363445535,1748724644978,-1553.21,0.00019726,2]
[363445537,1748724644988,-430.0,0.00019726,2]
[363445539,1748724644998,-353.94,0.00019726,2]
[363445541,1748724645008,-540.7,0.00019726,2]
[363445543,1748724645017,-499.78,0.00019726,2]
[363445545,1748724645028,-1518.25,0.00019726,2]
[363445547,1748724645037,-303.18,0.00019726,2]
[363445549,1748724645047,-446.85,0.00019726,2]
[363445551,1748724645056,-430.0,0.00019726,2]
[363445553,1748724645067,-799.21,0.00019726,2]
[363445555,1748724645076,-1387.14,0.00019726,2]
[363445557,1748724645086,-511.93,0.00019726,2]
[363445559,1748724645096,-472.1,0.00019726,2]
[363445561,1748724645105,-430.0,0.00019726,2]
[363445563,1748724645115,-180.48478374,0.00019726,2]
[363445565,1748724645125,-487.82,0.00019726,2]
[363445567,1748724645134,-430.0,0.00019726,2]
[363445569,1748724645144,-783.86,0.00019726,2]
[363445571,1748724645154,-867.63,0.00019726,2]
[363445573,1748724645163,-896.72,0.00019726,2]
[363445575,1748724645172,-763.33,0.00019726,2]
[363445577,1748724645182,-430.0,0.00019726,2]
[363445579,1748724645191,-1313.16,0.00019726,2]
[363445581,1748724645202,-658.46,0.00019726,2]
[363445583,1748724645211,-502.44,0.00019726,2]
[363445585,1748724645220,-448.76,0.00019726,2]
[363445587,1748724645230,-430.0,0.00019726,2]
[363445589,1748724645240,-683.63,0.00019726,2]
[363445591,1748724645249,-430.0,0.00019726,2]
[363445593,1748724645258,-500.89721394,0.00019785,2]
[363445595,1748724645268,-501.0382725,0.00019785,2]
[363445597,1748724645277,-486.378,0.00019805,2]
[363445599,1748724645287,-178.7,0.00019805,2]
[363445601,1748724645297,-163.216496,0.00019827,2]
[363445603,1748724645306,-163.216496,0.00019827,2]
[363445605,1748724645316,-151.0,0.00019827,2]
[363445607,1748724645326,-598.37328624,0.00019831,2]
[363445610,1748724645336,-11554.58,0.00019838,2]
[363445612,1748724645346,-416.65441554,0.000199,2]
[363445615,1748724645356,-800.0,0.00019964,2]
[363445617,1748724645365,-163.216496,0.0002,2]
[363445619,1748724645375,-163.216496,0.0002,2]
[363445622,1748724645384,-151.0,0.0002,2]
[363445624,1748724645394,-1553.21,0.0002,2]
[363445627,1748724645403,-250.57239783,0.0002,2]
[363445628,1748724645413,-540.7,0.0002,2]
[363445630,1748724645423,-499.78,0.0002,2]
[363445632,1748724645432,-1518.25,0.0002,2]
[363445634,1748724645442,-430.0,0.0002,2]
[363445636,1748724645451,-799.21,0.0002,2]
[363445638,1748724645462,-1387.14,0.0002,2]
[363445640,1748724645471,-511.93,0.0002,2]
[363445653,1748724645588,-472.1,0.0002,2]
[363445655,1748724645599,-430.0,0.0002,2]
[363445658,1748724645609,-487.82,0.0002,2]
[363445659,1748724645618,-430.0,0.0002,2]
[363445662,1748724645630,-783.86,0.0002,2]
[363445664,1748724645643,-867.63,0.0002,2]
[363445666,1748724645652,-896.72,0.0002,2]
[363445668,1748724645662,-763.33,0.0002,2]
[363445670,1748724645671,-430.0,0.0002,2]
[363445672,1748724645683,-1313.16,0.0002,2]
[363445674,1748724645693,-658.46,0.0002,2]
[363445676,1748724645702,-502.44,0.0002,2]
[363445678,1748724645711,-448.76,0.0002,2]
[363445680,1748724645722,-430.0,0.0002,2]
[363445682,1748724645732,-683.63,0.0002,2]
[363445684,1748724645741,-463.72,0.0002,2]
[363445686,1748724645752,-598.37328624,0.00020072,2]
[363445688,1748724645762,-215.0738,0.00020236,2]
[363445690,1748724645772,-1553.21,0.00020273,2]
[363445692,1748724645782,-540.7,0.00020273,2]
[363445694,1748724645791,-499.78,0.00020273,2]
[363445696,1748724645801,-1518.25,0.00020273,2]
[363445698,1748724645811,-429.23,0.00020273,2]
[363445700,1748724645820,-799.21,0.00020273,2]
[363445702,1748724645830,-1387.14,0.00020273,2]
[363445704,1748724645839,-511.93,0.00020273,2]
[363445705,1748724645849,-472.1,0.00020273,2]
[363445707,1748724645859,-430.0,0.00020273,2]
[363445709,1748724645868,-487.82,0.00020273,2]
[363445711,1748724645879,-430.0,0.00020273,2]
[363445713,1748724645888,-783.86,0.00020273,2]
[363445715,1748724645898,-867.63,0.00020273,2]
[363445718,1748724645908,-896.72,0.00020273,2]
[363445720,1748724645920,-763.33,0.00020273,2]
[363445721,1748724645930,-276.75,0.00020273,2]
[363445724,1748724645940,-1313.16,0.00020273,2]
[363445726,1748724645950,-658.46,0.00020273,2]
[363445728,1748724645960,-502.44,0.00020273,2]
[363445730,1748724645970,-448.76,0.00020273,2]
[363445731,1748724645979,-468.02,0.00020273,2]
[363445734,1748724645990,-683.63,0.00020273,2]
[363445735,1748724645999,-240.0,0.00020274,3]
[363445737,1748724646009,-598.37328624,0.00020314,3]
[363445739,1748724646019,-151.0,0.0002041,2]
[363445741,1748724646028,-500.0,0.0002041,2]
[363445743,1748724646038,-151.0,0.0002041,2]
[363445746,1748724646047,-208.48728359,0.0002041,2]
[363445747,1748724646057,-151.0,0.00020437,2]
[363445749,1748724646067,-500.0,0.00020437,2]
[363445751,1748724646076,-151.0,0.00020465,2]
[363445753,1748724646087,-500.0,0.00020465,2]
[363445755,1748724646096,-202.57043117,0.00020492,2]
[363445757,1748724646106,-198.60315693,0.00020492,2]
[363445759,1748724646117,-1553.21,0.00020547,2]
[363445761,1748724646127,-540.7,0.00020547,2]
[363445763,1748724646136,-499.78,0.00020547,2]
[363445765,1748724646146,-1518.25,0.00020547,2]
[363445767,1748724646156,-799.21,0.00020547,2]
[363445769,1748724646166,-1387.14,0.00020547,2]
[363445771,1748724646176,-511.93,0.00020547,2]
[363445773,1748724646186,-472.1,0.00020547,2]
[363445775,1748724646197,-430.0,0.00020547,2]
[363445777,1748724646207,-487.82,0.00020547,2]
[363445780,1748724646218,-430.0,0.00020547,2]
[363445782,1748724646228,-783.86,0.00020547,2]
[363445784,1748724646238,-867.63,0.00020547,2]
[363445786,1748724646248,-896.72,0.00020547,2]
[363445788,1748724646257,-763.33,0.00020547,2]
[363445790,1748724646267,-1313.16,0.00020547,2]
[363445792,1748724646277,-658.46,0.00020547,2]
[363445794,1748724646287,-502.44,0.00020547,2]
[363445797,1748724646297,-448.76,0.00020547,2]
[363445799,1748724646307,-683.63,0.00020547,2]
[363445802,1748724646318,-598.37328624,0.00020555,3]
[363445804,1748724646327,-217.11,0.000206,2]
[363445806,1748724646338,-9453.5,0.000206,2]